fUST/lending_fUST_20251212
["ID","MTS","AMOUNT","RATE_DAILY","PERIOD"]
[398355934,1765551532598,-1996.1,0.00041095,120]
[398355935,1765551532644,-2110.54,0.00041095,120]
[398355936,1765551532691,-500.0,0.00041095,120]
[398355937,1765551532738,-500.0,0.00041095,120]
[398355938,1765551532786,-500.0,0.00041095,120]
[398355939,1765551532834,-500.0,0.00041095,120]
[398355940,1765551532880,-500.0,0.00041095,120]
[398355941,1765551532931,-9001.55,0.00041095,120]
[398355942,1765551532976,-500.0,0.00041095,120]
[398355943,1765551533022,-1010.87,0.00041095,120]
[398355944,1765551533078,-2303.62,0.00041095,120]
[398355945,1765551533129,-2906.18,0.00041095,120]
[398355946,1765551533179,-500.0,0.00041095,120]
[398355947,1765551533231,-22718.21,0.00041095,120]
[398355948,1765551533281,-1592.05,0.00041095,120]
[398355949,1765551533330,-999.97,0.00041095,120]
[398355950,1765551533398,-1833.54,0.00041095,120]
[398355951,1765551533453,-500.0,0.00041095,120]
[398355952,1765551533504,-500.0,0.00041095,120]
[398355953,1765551533559,-535.28974124,0.00041095,120]
[398355954,1765551533616,-27650.2,0.00041095,120]
[398355955,1765551533673,-594.7,0.00041095,120]
[398355956,1765551533723,-500.0,0.00041095,120]
[398355957,1765551533773,-500.0,0.00041095,120]
[398355958,1765551533823,-2595.28,0.00041095,120]
[398355959,1765551533872,-633.92,0.00041095,120]
[398355960,1765551533925,-604.71,0.00041095,120]
[398355961,1765551533976,-500.0,0.00041095,120]
[398355962,1765551534027,-996.1,0.00041095,120]
[398355963,1765551534080,-500.0,0.00041095,120]
[398355964,1765551534136,-719.66,0.00041095,120]
[398355965,1765551534190,-768.67,0.00041095,30]
[398355966,1765551534241,-537.19,0.00041095,120]
[398355967,1765551534297,-2790.78,0.00041095,120]
[398355968,1765551534370,-5160.6,0.00041095,120]
[398355969,1765551534437,-500.0,0.00041095,120]
[398355970,1765551534498,-500.0,0.00041095,120]
[398355971,1765551534561,-654.67,0.00041095,120]
[398355972,1765551534615,-500.0,0.00041095,120]
[398355973,1765551534669,-536.21,0.00041095,120]
[398355974,1765551534721,-1472.63,0.00041095,120]
[398355975,1765551534774,-753.89,0.00041095,120]
[398355976,1765551534828,-500.0,0.00041095,120]
[398355977,1765551534881,-1063.01,0.00041095,120]
[398355978,1765551534935,-992.13,0.00041095,120]
[398355979,1765551534987,-1270.95,0.00041095,120]
[398355980,1765551535037,-500.0,0.00041095,120]
[398355981,1765551535088,-885.72,0.00041095,120]
[398355982,1765551535140,-1062.43,0.00041095,120]
[398355983,1765551535190,-500.0,0.00041095,120]
[398355984,1765551535243,-1650.53,0.00041095,120]
[398355985,1765551535292,-500.0,0.00041095,120]
[398355986,1765551535344,-500.0,0.00041095,120]
[398355987,1765551535397,-3845.54,0.00041095,120]
[398355988,1765551535447,-500.0,0.00041095,120]
[398355989,1765551535503,-541.01,0.00041095,120]
[398355990,1765551535555,-500.0,0.00041095,120]
[398355991,1765551535604,-2038.3,0.00041095,120]
[398355992,1765551535655,-1922.65,0.00041095,120]
[398355993,1765551535704,-500.0,0.00041095,120]
[398355994,1765551535859,-2413.47,0.00041095,120]
[398355995,1765551535910,-500.0,0.00041095,120]
[398355996,1765551535965,-766.61,0.00041095,120]
[398355997,1765551536018,-2900.12,0.00041095,120]
[398355998,1765551536074,-1672.8,0.00041095,120]
[398355999,1765551536128,-784.74,0.00041095,120]
[398356000,1765551536181,-500.0,0.00041095,120]
[398356001,1765551536233,-500.0,0.00041095,120]
[398356002,1765551536296,-4558.32,0.00041095,120]
[398356003,1765551536353,-500.0,0.00041095,120]
[398356004,1765551536411,-1098.06,0.00041095,120]
[398356005,1765551536467,-500.0,0.00041095,120]
[398356006,1765551536520,-658.88,0.00041095,120]
[398356007,1765551536575,-6758.05,0.00041095,120]
[398356008,1765551536628,-500.5220191,0.00041095,120]
[398356009,1765551536681,-500.0,0.00041095,30]
[398356010,1765551536732,-500.0,0.00041095,120]
[398356011,1765551536782,-1461.11,0.00041095,120]
[398356012,1765551536831,-500.0,0.00041095,120]
[398356013,1765551536883,-500.79907311,0.00041095,120]
[398356014,1765551536936,-1192.44,0.00041095,120]
[398356015,1765551536987,-500.0,0.00041095,120]
[398356016,1765551537039,-4560.77,0.00041095,120]
[398356017,1765551537089,-500.0,0.00041095,120]
[398356018,1765551537140,-500.0,0.00041095,120]
[398356019,1765551537191,-500.0,0.00041095,120]
[398356020,1765551537243,-7371.62,0.00041095,120]
[398356021,1765551537297,-500.0,0.00041095,120]
[398356022,1765551537363,-660.64,0.00041095,120]
[398356023,1765551537418,-1412.34,0.00041095,120]
[398356024,1765551537468,-617.1,0.00041095,120]
[398356025,1765551537517,-500.0,0.00041095,120]
[398356026,1765551537567,-500.0,0.00041095,120]
[398356027,1765551537616,-500.0,0.00041095,120]
[398356028,1765551537664,-500.0,0.00041095,120]
[398356029,1765551537712,-500.0,0.00041095,120]
[398356030,1765551537761,-500.0,0.00041095,120]
[398356031,1765551537807,-2376.95,0.00041095,120]
[398356032,1765551537854,-500.0,0.00041095,120]
[398356033,1765551537901,-500.0,0.00041095,120]
[398356034,1765551537948,-532.46,0.00041095,120]
[398356035,1765551537999,-771.36,0.00041095,120]
[398356036,1765551538049,-2107.15,0.00041095,30]
[398356037,1765551538098,-500.0,0.00041095,120]
[398356038,1765551538151,-804.28,0.00041095,120]
[398356039,1765551538205,-1559.94,0.00041095,120]
[398356040,1765551538257,-791.49,0.00041095,120]
[398356041,1765551538309,-1920.43,0.00041095,120]
[398356042,1765551538364,-501.31298857,0.00041095,120]
[398356043,1765551538419,-1848.03,0.00041095,120]
[398356044,1765551538472,-500.0,0.00041095,120]
[398356045,1765551538526,-552.7438451,0.00041095,120]
[398356046,1765551538579,-1315.71,0.00041095,120]
[398356047,1765551538632,-169.876629,0.00041095,120]
[398356048,1765551538684,-571.16,0.00041095,120]
[398356049,1765551538735,-760.32,0.00041095,120]
[398356050,1765551538787,-500.0,0.00041095,120]
[398356051,1765551538839,-5221.94,0.00041095,120]
[398356052,1765551538895,-500.0,0.00041095,120]
[398356053,1765551538946,-500.75975253,0.00041095,120]
[398356054,1765551538996,-500.0,0.00041095,120]
[398356055,1765551539048,-500.0,0.00041095,120]
[398356056,1765551539106,-500.0,0.00041095,120]
[398356057,1765551539169,-6806.92,0.00041095,120]
[398356058,1765551539230,-822.46,0.00041095,120]
[398356059,1765551539290,-500.0,0.00041095,120]
[398356060,1765551539350,-500.0,0.00041095,120]
[398356061,1765551539407,-500.0,0.00041095,120]
[398356062,1765551539460,-500.0,0.00041095,120]
[398356063,1765551539513,-500.0,0.00041095,120]
[398356064,1765551539569,-2232.790113,0.00041095,120]
[398356065,1765551539620,-1301.35,0.00041095,120]
[398356066,1765551539672,-500.0,0.00041095,120]
[398356067,1765551539724,-500.0,0.00041095,120]
[398356068,1765551539776,-500.0,0.00041095,120]
[398356069,1765551539829,-2816.98,0.00041095,120]
[398356070,1765551539881,-500.0,0.00041095,120]
[398356071,1765551539937,-807.71,0.00041095,120]
[398356072,1765551539991,-500.0,0.00041095,120]
[398356073,1765551540044,-1165.13,0.00041095,30]
[398356074,1765551540100,-500.0,0.00041095,120]
[398356075,1765551540164,-226.29490366,0.00041095,120]
[398356076,1765551540218,-559.07,0.00041095,120]
[398356077,1765551540279,-500.0,0.00041095,120]
[398356078,1765551540336,-500.66,0.00041095,120]
[398356079,1765551540395,-1357.98,0.00041095,120]
[398356080,1765551540453,-500.0,0.00041095,120]
[398356081,1765551540505,-500.0,0.00041095,120]
[398356082,1765551540558,-343.08646654,0.00041095,120]
[398356083,1765551540607,-500.0,0.00041095,120]
[398356084,1765551540656,-830.63,0.00041095,120]
[398356085,1765551540705,-500.0,0.00041095,120]
[398356086,1765551540754,-500.0,0.00041095,120]
[398356087,1765551540805,-500.0,0.00041095,120]
[398356088,1765551540858,-500.0,0.00041095,120]
[398356089,1765551540907,-4984.88,0.00041095,120]
[398356090,1765551541110,-500.0,0.00041095,120]
[398356091,1765551541159,-1656.13,0.00041095,120]
[398356092,1765551541210,-1033.11,0.00041095,120]
[398356093,1765551541261,-500.0,0.00041095,120]
[398356094,1765551541314,-500.0,0.00041095,120]
[398356095,1765551541367,-500.0,0.00041095,120]
[398356096,1765551541419,-500.0,0.00041095,120]
[398356097,1765551541473,-500.0,0.00041095,120]
[398356098,1765551541527,-697.36,0.00041095,120]
[398356099,1765551541581,-677.54,0.00041095,120]
[398356100,1765551541634,-3932.31,0.00041095,120]
[398356101,1765551541693,-991.44,0.00041095,120]
[398356102,1765551541748,-1507.22,0.00041095,120]
[398356103,1765551541801,-500.0,0.00041095,120]
[398356104,1765551541855,-500.0,0.00041095,120]
[398356105,1765551541909,-2032.65,0.00041095,120]
[398356106,1765551541963,-500.0,0.00041095,120]
[398356107,1765551542014,-500.0,0.00041095,120]
[398356108,1765551542067,-3703.69,0.00041095,120]
[398356109,1765551542119,-1830.44,0.00041095,120]
[398356110,1765551542171,-500.0,0.00041095,120]
[398356111,1765551542228,-500.0,0.00041095,120]
[398356112,1765551542280,-986.77,0.00041095,120]
[398356113,1765551542334,-500.0,0.00041095,120]
[398356114,1765551542387,-3704.65,0.00041095,120]
[398356115,1765551542438,-500.0,0.00041095,120]
[398356116,1765551542492,-500.0,0.00041095,120]
[398356117,1765551542545,-500.0,0.00041095,120]
[398356118,1765551542601,-7458.75,0.00041095,120]
[398356119,1765551542655,-1053.64,0.00041095,120]
[398356120,1765551542707,-1240.96,0.00041095,120]
[398356121,1765551542757,-601.86,0.00041095,120]
[398356122,1765551542807,-500.0,0.00041095,120]
[398356123,1765551542855,-857.66,0.00041095,120]
[398356124,1765551542905,-509.78,0.00041095,120]
[398356125,1765551542954,-528.05,0.00041095,120]
[398356126,1765551543004,-476.724665,0.00041095,120]
[398356127,1765551543054,-500.0,0.00041095,120]
[398356128,1765551543108,-1644.47,0.00041095,120]
[398356129,1765551543165,-4461.41,0.00041095,120]
[398356130,1765551543216,-264.04440969,0.00041095,120]
[398356131,1765551543267,-500.0,0.00041095,120]
[398356132,1765551543318,-467.45327972,0.00041095,120]
[398356133,1765551543373,-541.33311091,0.00041095,120]
[398356134,1765551543428,-302.1700238,0.00041096,30]
[398356135,1765551543485,-795.43107,0.00041096,30]
[398356136,1765551543540,-353.4805169,0.00041096,30]
[398356137,1765551543599,-597.3517137,0.00041096,30]
[398356138,1765551543654,-302.1700238,0.00041096,30]
[398356139,1765551543708,-597.3517137,0.00041096,30]
[398356140,1765551543765,-302.1700238,0.00041096,30]
[398356141,1765551543819,-597.3517137,0.00041096,30]
[398356142,1765551543873,-302.1700238,0.00041096,30]
[398356143,1765551543927,-597.3517137,0.00041096,30]
[398356144,1765551543980,-302.1700238,0.00041096,30]
[398356145,1765551544033,-597.3517137,0.00041096,30]
[398356146,1765551544085,-302.1700238,0.00041096,30]
[398356147,1765551544137,-441.0207648,0.00041096,30]
[398356148,1765551544189,-289.3233095,0.00041096,30]
[398356149,1765551544241,-165.4241396,0.00041096,30]
[398356150,1765551544295,-397.7854818,0.00041096,30]
[398356151,1765551544351,-597.3517137,0.00041096,30]
[398356152,1765551544406,-339.0495744,0.00041096,30]
[398356153,1765551544461,-302.1700238,0.00041096,30]
[398356154,1765551544514,-597.3517137,0.00041096,30]
[398356155,1765551544567,-397.7854818,0.00041096,30]
[398356156,1765551544619,-165.4241396,0.00041096,30]
[398356157,1765551544670,-597.3517137,0.00041096,30]
[398356158,1765551544721,-397.7854818,0.00041096,30]
[398356159,1765551544772,-165.4241396,0.00041096,30]
[398356160,1765551544822,-597.3517137,0.00041096,30]
[398356161,1765551544870,-397.7854818,0.00041096,30]
[398356162,1765551544918,-165.4241396,0.00041096,30]
[398356163,1765551544966,-597.3517137,0.00041096,30]
[398356164,1765551545013,-165.4241396,0.00041096,30]
[398356165,1765551545061,-397.7854818,0.00041096,30]
[398356166,1765551545109,-597.3517137,0.00041096,30]
[398356167,1765551545159,-165.4241396,0.00041096,30]
[398356168,1765551545211,-397.7854818,0.00041096,30]
[398356169,1765551545264,-397.7854818,0.00041096,30]
[398356170,1765551545316,-597.3517137,0.00041096,30]
[398356171,1765551545366,-165.4241396,0.00041096,30]
[398356172,1765551545418,-597.3517137,0.00041096,30]
[398356173,1765551545469,-165.4241396,0.00041096,30]
[398356174,1765551545789,-597.3517137,0.00041096,30]
[398356175,1765551545839,-165.4241396,0.00041096,30]
[398356176,1765551545891,-597.3517137,0.00041096,30]
[398356177,1765551545945,-597.3517137,0.00041096,30]
[398356178,1765551546000,-597.3517137,0.00041096,30]
[398356179,1765551546052,-597.3517137,0.00041096,30]
[398356180,1765551546105,-597.3517137,0.00041096,30]
[398356181,1765551546158,-597.3517137,0.00041096,30]
[398356182,1765551546209,-597.3517137,0.00041096,30]
[398356183,1765551546259,-394.7946213,0.00041096,30]
[398356184,1765551546310,-597.3517137,0.00041096,30]
[398356185,1765551546363,-192.5119955,0.00041096,30]
[398356186,1765551546416,-597.3517137,0.00041096,30]
[398356187,1765551546475,-597.3517137,0.00041096,30]
[398356188,1765551546530,-597.3517137,0.00041096,30]
[398356189,1765551546582,-192.5119955,0.00041096,30]
[398356190,1765551546643,-597.3517137,0.00041096,30]
[398356191,1765551546697,-192.5119955,0.00041096,30]
[398356192,1765551546751,-597.3517137,0.00041096,30]
[398356193,1765551546803,-597.3517137,0.00041096,30]
[398356194,1765551546856,-192.5119955,0.00041096,30]
[398356195,1765551546906,-597.3517137,0.00041096,30]
[398356196,1765551546954,-192.5119955,0.00041096,30]
[398356197,1765551547003,-534.7323266,0.00041096,30]
[398356198,1765551547054,-166.03,0.00041369,120]
[398356199,1765551547103,-577.85,0.00041369,120]
[398356200,1765551547152,-500.0,0.00041369,120]
[398356201,1765551547204,-500.0,0.00041369,120]
[398356202,1765551547255,-500.0,0.00041369,120]
[398356203,1765551547311,-500.0,0.00041369,120]
[398356204,1765551547363,-500.0,0.00041369,120]
[398356205,1765551547414,-500.0,0.00041369,120]
[398356206,1765551547463,-505.97685525,0.00041369,120]
[398356207,1765551547514,-279.78580214,0.00041369,120]
[398356208,1765551547565,-500.0,0.00041369,120]
[398356209,1765551547613,-500.0,0.00041369,120]
[398356210,1765551547660,-500.0,0.00041369,120]
[398356211,1765551547705,-500.0,0.00041369,120]
[398356212,1765551547749,-438.58850098,0.00041369,120]
[398356213,1765551547796,-500.0,0.00041369,120]
[398356214,1765551547842,-500.0,0.00041369,120]
[398356215,1765551547892,-500.0,0.00041369,120]
[398356216,1765551547940,-500.0,0.00041369,120]
[398356217,1765551547985,-500.0,0.00041369,120]
[398356218,1765551548031,-500.0,0.00041369,120]
[398356219,1765551548078,-1023.24,0.00041369,120]
[398356220,1765551548125,-500.0,0.00041369,120]
[398356221,1765551548174,-500.0,0.00041369,120]
[398356222,1765551548223,-500.0,0.00041369,120]
[398356223,1765551548271,-739.99,0.00041369,120]
[398356224,1765551548319,-653.44,0.00041369,120]
[398356225,1765551548371,-1602.86,0.00041369,120]
[398356226,1765551548421,-500.0,0.00041369,120]
[398356227,1765551548472,-500.00000003,0.00041369,120]
[398356228,1765551548520,-500.0,0.00041369,120]
[398356229,1765551548569,-500.0,0.00041369,120]
[398356230,1765551548618,-500.0,0.00041369,120]
[398356231,1765551548666,-500.0,0.00041369,30]
[398356232,1765551548716,-500.0,0.00041369,120]
[398356233,1765551548765,-500.0,0.00041369,120]
[398356234,1765551548813,-1083.15,0.00041369,120]
[398356235,1765551548861,-915.35,0.00041369,120]
[398356236,1765551548910,-500.0,0.00041369,120]
[398356237,1765551548960,-500.0,0.00041369,120]
[398356238,1765551549012,-500.0,0.00041369,120]
[398356239,1765551549062,-500.0,0.00041369,120]
[398356240,1765551549168,-500.0,0.00041369,120]
[398356241,1765551549219,-500.0,0.00041369,120]
[398356242,1765551549268,-527.93,0.00041369,120]
[398356243,1765551549318,-500.0,0.00041369,120]
[398356244,1765551549368,-500.0,0.00041369,120]
[398356245,1765551549417,-661.64,0.00041369,120]
[398356246,1765551549466,-500.0,0.00041369,120]
[398356247,1765551549517,-500.0,0.00041369,120]
[398356248,1765551549565,-500.0,0.00041369,120]
[398356249,1765551549612,-1294.61,0.00041369,120]
[398356250,1765551549658,-919.59,0.00041369,120]
[398356251,1765551549703,-500.0,0.00041369,120]
[398356252,1765551549749,-500.0,0.00041369,120]
[398356253,1765551549796,-500.0,0.00041369,120]
[398356254,1765551549841,-500.0,0.00041369,120]
[398356255,1765551549886,-1577.88,0.00041369,120]
[398356256,1765551549934,-524.74,0.00041369,120]
[398356257,1765551549976,-831.55,0.00041369,120]
[398356258,1765551550019,-1017.69,0.00041369,120]
[398356259,1765551550064,-548.68,0.00041369,120]
[398356260,1765551550108,-740.84,0.00041369,120]
[398356261,1765551550153,-2056.85456689,0.00041369,60]
[398356262,1765551550197,-500.0,0.00041369,120]
[398356263,1765551550242,-500.0,0.00041369,120]
[398356264,1765551550287,-500.0,0.00041369,120]
[398356265,1765551550333,-500.0,0.00041369,120]
[398356266,1765551550381,-551.69,0.00041369,120]
[398356267,1765551550429,-500.0,0.00041369,120]
[398356268,1765551550476,-500.0,0.00041369,120]
[398356269,1765551550522,-500.0,0.00041369,120]
[398356270,1765551550571,-500.0,0.00041369,120]
[398356271,1765551550617,-500.0,0.00041369,120]
[398356272,1765551550663,-1148.95,0.00041369,120]
[398356273,1765551550711,-500.0,0.00041369,120]
[398356274,1765551550759,-518.77,0.00041369,120]
[398356275,1765551550805,-500.0,0.00041369,120]
[398356276,1765551550855,-500.0,0.00041369,120]
[398356277,1765551550901,-500.0,0.00041369,120]
[398356278,1765551550948,-500.0,0.00041369,120]
[398356279,1765551550993,-500.0,0.00041369,120]
[398356280,1765551551039,-500.0,0.00041369,120]
[398356281,1765551551086,-500.0,0.00041369,120]
[398356282,1765551551132,-500.0,0.00041369,120]
[398356283,1765551551178,-500.0,0.00041369,120]
[398356284,1765551551224,-500.0,0.00041369,120]
[398356285,1765551551269,-500.0,0.00041369,120]
[398356286,1765551551315,-500.0,0.00041369,120]
[398356287,1765551551364,-500.0,0.00041369,120]
[398356288,1765551551410,-751.84,0.00041369,120]
[398356289,1765551551462,-500.0,0.00041369,120]
[398356290,1765551551511,-500.0,0.00041369,120]
[398356291,1765551551560,-500.0,0.00041369,120]
[398356292,1765551551608,-500.0,0.00041369,120]
[398356293,1765551551659,-500.0,0.00041369,120]
[398356294,1765551551707,-500.0,0.00041369,120]
[398356295,1765551551753,-500.0,0.00041369,120]
[398356296,1765551551801,-692.4,0.00041369,120]
[398356297,1765551551849,-500.0,0.00041369,120]
[398356298,1765551551899,-500.0,0.00041369,120]
[398356299,1765551551947,-500.0,0.00041369,120]
[398356300,1765551551995,-500.0,0.00041369,120]
[398356301,1765551552045,-500.0,0.00041369,120]
[398356302,1765551552094,-913.5,0.00041369,120]
[398356303,1765551552143,-500.0,0.00041369,120]
[398356304,1765551552192,-500.0,0.00041369,120]
[398356305,1765551552242,-500.0,0.00041369,120]
[398356306,1765551552291,-500.0,0.00041369,120]
[398356307,1765551552341,-1021.23,0.00041369,120]
[398356308,1765551552393,-500.0,0.00041369,120]
[398356309,1765551552448,-500.0,0.00041369,120]
[398356310,1765551552504,-500.0,0.00041369,120]
[398356311,1765551552560,-695.87,0.00041369,120]
[398356312,1765551552609,-1804.72,0.00041369,120]
[398356313,1765551552657,-500.72111054,0.00041369,120]
[398356314,1765551552705,-500.0,0.00041369,120]
[398356315,1765551552751,-942.83,0.00041369,120]
[398356316,1765551552797,-500.0,0.00041369,120]
[398356317,1765551552848,-500.0,0.00041369,120]
[398356318,1765551552902,-713.52,0.00041369,120]
[398356319,1765551552953,-517.36,0.00041369,120]
[398356320,1765551552999,-500.0,0.00041369,120]
[398356321,1765551553044,-500.0,0.00041369,120]
[398356322,1765551553090,-500.0,0.00041369,120]
[398356323,1765551553136,-500.0,0.00041369,120]
[398356324,1765551553183,-500.0,0.00041369,120]
[398356325,1765551553230,-500.0,0.00041369,120]
[398356326,1765551553278,-1064.91,0.00041369,120]
[398356327,1765551553324,-500.0,0.00041369,120]
[398356328,1765551553372,-500.0,0.00041369,120]
[398356329,1765551553422,-500.0,0.00041369,120]
[398356330,1765551553468,-500.0,0.00041369,120]
[398356331,1765551553513,-584.03216213,0.00041369,120]
[398356332,1765551553560,-500.0,0.00041369,120]
[398356333,1765551553606,-500.0,0.00041369,120]
[398356334,1765551553652,-888.56,0.00041369,120]
[398356335,1765551553701,-500.0,0.00041369,120]
[398356336,1765551553852,-500.0,0.00041369,120]
[398356337,1765551553899,-500.0,0.00041369,120]
[398356338,1765551553945,-500.0,0.00041369,120]
[398356339,1765551553995,-1772.02,0.00041369,120]
[398356340,1765551554046,-500.0,0.00041369,120]
[398356341,1765551554094,-199.0,0.00041369,40]
[398356342,1765551554144,-1170.54,0.00041369,120]
[398356343,1765551554192,-181.84294215,0.00041369,120]
[398356344,1765551554241,-1155.19,0.00041369,120]
[398356345,1765551554289,-527.78,0.00041369,120]
[398356346,1765551554340,-500.0,0.00041369,120]
[398356347,1765551554392,-500.0,0.00041369,120]
[398356348,1765551554445,-835.63,0.00041369,120]
[398356349,1765551554496,-504.46,0.00041369,120]
[398356350,1765551554544,-500.0,0.00041369,120]
[398356351,1765551554593,-500.0,0.00041369,120]
[398356352,1765551554640,-500.0,0.00041369,120]
[398356353,1765551554690,-500.0,0.00041369,120]
[398356354,1765551554741,-500.0,0.00041369,120]
[398356355,1765551554790,-500.0,0.00041369,120]
[398356356,1765551554839,-500.0,0.00041369,60]
[398356357,1765551554889,-947.43,0.00041369,120]
[398356358,1765551554940,-500.0,0.00041369,120]
[398356359,1765551554991,-500.0,0.00041369,120]
[398356360,1765551555042,-2498.81,0.00041369,120]
[398356361,1765551555089,-1513.84,0.00041369,120]
[398356362,1765551555136,-500.0,0.00041369,120]
[398356363,1765551555188,-500.0,0.00041369,120]
[398356364,1765551555236,-553.13,0.00041369,120]
[398356365,1765551555287,-401.04,0.00041369,120]
[398356366,1765551555339,-217.34,0.00041369,120]
[398356367,1765551555391,-1972.67,0.00041369,120]
[398356368,1765551555441,-500.0,0.00041369,120]
[398356369,1765551555491,-500.0,0.00041369,120]
[398356370,1765551555540,-500.0,0.00041369,120]
[398356371,1765551555589,-500.0,0.00041369,120]
[398356372,1765551555640,-500.0,0.00041369,120]
[398356373,1765551555689,-500.0,0.00041369,120]
[398356374,1765551555738,-566.0,0.00041369,120]
[398356375,1765551555787,-500.0,0.00041369,120]
[398356376,1765551555836,-555.39,0.00041369,120]
[398356377,1765551555883,-650.15,0.00041369,120]
[398356378,1765551555936,-500.0,0.00041369,120]
[398356379,1765551555982,-500.0,0.00041369,120]
[398356380,1765551556028,-546.48,0.00041369,120]
[398356381,1765551556075,-500.0,0.00041369,120]
[398356382,1765551556122,-500.0,0.00041369,120]
[398356383,1765551556171,-500.0,0.00041369,120]
[398356384,1765551556221,-500.0,0.00041369,120]
[398356385,1765551556271,-500.0,0.00041369,120]
[398356386,1765551556321,-500.0,0.00041369,120]
[398356387,1765551556376,-500.0,0.00041369,120]
[398356388,1765551556432,-500.0,0.00041369,120]
[398356389,1765551556484,-500.0,0.00041369,90]
[398356390,1765551556537,-955.21,0.00041369,120]
[398356391,1765551556587,-500.0,0.00041369,120]
[398356392,1765551556637,-500.0,0.00041369,120]
[398356393,1765551556686,-608.9,0.00041369,120]
[398356394,1765551556735,-500.0,0.00041369,120]
[398356395,1765551556781,-583.48,0.00041369,120]
[398356396,1765551556829,-500.0,0.00041369,120]
[398356397,1765551556874,-500.0,0.00041369,120]
[398356398,1765551556919,-500.0,0.00041369,120]
[398356399,1765551556968,-646.24,0.00041369,120]
[398356400,1765551557016,-500.0,0.00041369,120]
[398356401,1765551557064,-550.65,0.00041369,120]
[398356402,1765551557115,-1006.28,0.00041369,120]
[398356403,1765551557165,-817.12,0.00041369,120]
[398356404,1765551557216,-686.53,0.00041369,120]
[398356405,1765551557267,-500.0,0.00041369,120]
[398356406,1765551557317,-500.0,0.00041369,120]
[398356407,1765551557367,-561.43,0.00041369,120]
[398356408,1765551557415,-500.0,0.00041369,120]
[398356409,1765551557463,-1349.21,0.00041369,120]
[398356410,1765551557511,-500.0,0.00041369,120]
[398356411,1765551557559,-1514.23,0.00041369,120]
[398356412,1765551557606,-501.01995187,0.00041369,120]
[398356413,1765551557652,-608.7,0.00041369,120]
[398356414,1765551557698,-500.0,0.00041369,120]
[398356415,1765551557743,-518.44,0.00041369,120]
[398356416,1765551557790,-994.05,0.00041369,120]
[398356417,1765551557836,-2454.51,0.00041369,120]
[398356418,1765551557882,-500.0,0.00041369,120]
[398356419,1765551557932,-500.0,0.00041369,120]
[398356420,1765551558214,-500.0,0.00041369,120]
[398356421,1765551558265,-500.0,0.00041369,120]
[398356422,1765551558312,-345.03769734,0.00041369,120]
[398356423,1765551558362,-570.77,0.00041369,120]
[398356424,1765551558411,-500.0,0.00041369,120]
[398356425,1765551558460,-1335.36,0.00041369,120]
[398356426,1765551558510,-539.52,0.00041369,120]
[398356427,1765551558558,-500.0,0.00041369,120]
[398356428,1765551558606,-500.0,0.00041369,120]
[398356429,1765551558654,-500.0,0.00041369,120]
[398356430,1765551558701,-500.0,0.00041369,120]
[398356431,1765551558747,-500.0,0.00041369,120]
[398356432,1765551558792,-854.37,0.00041369,120]
[398356433,1765551558839,-500.0,0.00041369,120]